Cogmind - Beta 14 @@@ ROGUE MODE // 2024.08.25 @ 20:27:54 Player: THN-L0C Result: Destroyed by Striker with Plasma Lance Performance ------------- Evolutions (6) 3000 Regions Visited (15) 3000 Robots Destroyed (166) 830 Value Destroyed (6329) 6329 Prototype IDs (49) 980 Alien Tech Used (0) 0 Bonus (3587) 3587 TOTAL SCORE: 17726 Bonus ------- High Alert Combat Kills 253 Follower Combat Kills 2350 Registered with UFD 300 Met Data Miner 300 Met Warlord at Base 500 MAIN.C Attacked Warlord 500 Warlord Defense Kills 140 Friendly Fire -756 Cogmind --------- Core Integrity 0/1150 Matter 280/300 Energy 7/100 System Corruption 3% Temperature Cool (0) Movement Flying (42) Location -4/Warlord Parts ------- > --- POWER (2) -------- (None) > --- PROPULSION (6) --- Experimental Myomer Leg Cooled Impulse Thruster Cooled Impulse Thruster Impulse Thruster Array > --- UTILITY (8) ------ Advanced Signal Interpreter Experimental Core Analyzer Advanced Transmission Jammer Makeshift Propulsion Shielding > --- WEAPON (3) ------- Dirty Datajack Companion Sword > --- INVENTORY (5) ---- Vortex Chain Reactor Improved Medium Armor Plating Amulet of Y3-NDR Peak State ------------ > --- POWER ------------ Vortex Chain Reactor > --- PROPULSION ------- Experimental Myomer Leg Experimental Myomer Leg Cooled Impulse Thruster Cooled Impulse Thruster Impulse Thruster Array > --- UTILITY ---------- Advanced Heat Sink Advanced Signal Interpreter Experimental Core Analyzer Advanced Transmission Jammer Makeshift Propulsion Shielding Improved Medium Armor Plating Improved Energy Mantle System Purifier > --- WEAPON ----------- Neutron Cannon Dirty Datajack Companion Sword > --- INVENTORY -------- Improved Medium Armor Plating Amulet of Y3-NDR Neutron Cannon Hardcell Cannon Dirty Datajack [Rating: 147] Favorites ----------- Power Light Fission Core Engine Light Angular Momentum Engine Power Core Light Fission Core Reactor Light Antimatter Reactor Propulsion Armored Leg Treads Light Treads Leg Armored Leg Wheel Centrium Wheel Hover Unit Improved Antigrav System Flight Unit Cooled Impulse Thruster Utility High-capacity Storage Unit Device Scrap Suit Storage High-capacity Storage Unit Processor Advanced Signal Interpreter Hackware Improved System Shield Protection Enhanced Scrap Shield Weapon Overtuned Beamcaster Energy Gun Overtuned Beamcaster Energy Cannon Particle Cannon Ballistic Gun Overtuned Railgun Ballistic Cannon Bore Cannon Launcher Subdweller Shrapnel Launcher Special Weapon Improved Remote Datajack Impact Weapon Powered Hammer Slashing Weapon Ripper Special Melee Weapon Dirty Datajack Build | -11 -10 -10 -8 -8 -6 -6 -6 -6 -5 -5 -5 -4 -4 -4 -4 ------- Run | Yrd Mat Sub Rec Scr Fac Low Low Dat Pro Fac Ext Fac Upp Upp War Slots Evolved 12 | . . . . . 8 . . . . 2 . 2 . . . Power 1 | . . . . . . . . . . . . 1 . . . Propulsion 4 | . . . . . 2 . . . . 1 . 1 . . . Utility 6 | . . . . . 5 . . . . 1 . . . . . Weapon 1 | . . . . . 1 . . . . . . . . . . Parts Attached 358 | 6 17 34 2 12 66 22 19 2 17 6 65 50 11 2 27 Power 40 | 1 2 3 . 3 6 . 2 . 2 . 4 11 2 . 4 Engine 17 | 1 2 3 . 2 3 . 1 . 1 . 2 1 1 . . Core 13 | . . . . 1 3 . 1 . 1 . 2 4 . . 1 Reactor 10 | . . . . . . . . . . . . 6 1 . 3 Propulsion 81 | 2 1 3 1 2 13 2 . . 2 3 23 15 4 1 9 Treads 18 | 2 1 3 1 2 2 . . . . . 4 2 1 . . Leg 54 | . . . . . 8 2 . . 2 3 18 11 3 1 6 Wheel 5 | . . . . . 3 . . . . . 1 1 . . . Hover 1 | . . . . . . . . . . . . 1 . . . Flight 3 | . . . . . . . . . . . . . . . 3 Utility 131 | 1 3 24 . 4 18 10 11 . 10 2 25 12 2 1 8 Device 85 | . 2 23 . . 12 5 9 . 7 1 12 7 1 1 5 Storage 9 | 1 1 . . 3 . . . . . . 3 1 . . . Processor 8 | . . . . . . 1 . . . . 4 2 . . 1 Hackware 5 | . . . . . 3 . . . . 1 . 1 . . . Protection 24 | . . 1 . 1 3 4 2 . 3 . 6 1 1 . 2 Artifact . | . . . . . . . . . . . . . . . . Weapon 106 | 2 11 4 1 3 29 10 6 2 3 1 13 12 3 . 6 Energy Gun 13 | 2 . . 1 1 1 . . . . . 1 3 2 . 2 Energy Cannon 7 | . 2 1 . . 2 . . . 1 . . . . . 1 Ballistic Gun 20 | . . . . . 10 3 3 2 . . 1 1 . . . Ballistic Cannon 23 | . 4 . . . 3 3 2 . 1 1 5 4 . . . Launcher 10 | . 3 2 . . 1 2 . . . . 1 1 . . . Special Weapon 5 | . 2 . . . . . . . . . 2 . 1 . . Impact Weapon 4 | . . . . . . 2 1 . 1 . . . . . . Slashing Weapon 14 | . . 1 . 2 4 . . . . . 3 3 . . 1 Piercing Weapon . | . . . . . . . . . . . . . . . . Special Melee Weapon 10 | . . . . . 8 . . . . . . . . . 2 Unidentified Prototypes 19 | . . 1 . 1 4 1 1 . . 1 . 2 . . 8 Corrupted Parts 8 | . . . . . . . . . . . . 5 2 . 1 System Corruption 65 | . . . . . . . . . . . . 40 15 . 10 Parts Lost 81 | . . 1 . . 10 1 . . . 1 28 34 . . 6 Power 11 | . . . . . 1 . . . . . 1 9 . . . Propulsion 27 | . . . . . 4 . . . . . 12 10 . . 1 Utility 25 | . . . . . 5 . . . . . 8 9 . . 3 Weapon 18 | . . 1 . . . 1 . . . 1 7 6 . . 2 Highest Loss Streak 20 | . . 1 . . 4 1 . . . 1 20 18 . . 6 To Critical Strikes 2 | . . . . . 1 . . . . . 1 . . . . Average Slot Usage (%) 87 | . 99 95 97 92 87 81 80 80 80 82 76 80 86 100 93 Engine 5 | . 14 9 14 10 3 6 . . . 5 1 1 1 . . Core 2 | . . . . 3 2 . 5 6 6 4 2 1 . . . Treads 11 | . 28 28 28 28 8 . . . . . . 2 3 . . Leg 12 | . . . . . 12 20 20 20 19 22 22 16 26 31 27 Device 11 | . 13 13 . . 20 17 13 13 12 5 9 11 17 15 14 Storage 8 | . 14 14 14 14 6 6 6 6 6 5 4 6 . . . Processor 4 | . . . . . . 2 6 6 6 5 9 15 21 21 14 Protection 6 | . . . 14 13 6 7 6 6 7 16 7 1 2 5 9 Energy Gun 2 | . . . . . 5 6 6 6 5 . . 2 2 10 . Energy Cannon 2 | . 5 15 . . . . . . . 4 . . . . 3 Ballistic Gun 3 | . . . . . 7 6 6 6 11 . . 1 . . . Ballistic Cannon 1 | . 15 . . . 1 . 1 6 . . 4 2 . . . Launcher 2 | . 4 11 11 . . 2 . . . . . 1 . . . Impact Weapon 1 | . . . . . . 3 4 . . 5 2 . . . . Slashing Weapon 4 | . . . 14 21 3 . . . . . 2 3 . . 5 Peak Build Rating 147 | 6 12 20 21 31 78 81 84 85 87 98 91 124 114 114 147 Average Rating 57 | 5 8 14 19 23 69 76 78 82 85 97 66 89 97 113 116 On Entrance 60 | . 6 12 20 18 31 73 79 82 85 87 84 74 85 114 114 Naked Turns 80 | . . . . . . . . . . . 80 . . . . Heaviest Build 108 | 14 33 40 40 60 79 92 86 85 93 98 108 76 51 51 80 Greatest Support 135 | 40 40 40 40 40 74 66 62 62 62 78 99 128 128 128 135 Greatest Overweight (x) 35 | . . . . 2 9 1 1 1 1 1 35 4 . . 1 Average Overweight (x) . | . . . . . . 1 1 1 1 1 . 1 . . . Largest Inventory Capacity 20 | 8 15 15 15 20 20 20 20 20 20 20 20 15 5 5 5 Average Capacity 17 | 7 12 15 15 18 20 20 20 20 20 20 16 14 5 5 5 Most Carried 20 | 2 15 15 15 20 20 20 20 20 20 20 20 15 5 5 5 Average Carried 16 | . 9 14 14 16 19 19 19 20 19 19 14 13 4 4 4 Final Capacity 20 | 8 15 15 15 20 20 20 20 20 20 20 15 5 5 5 5 Final Carried 20 | 2 15 15 15 20 20 20 20 20 20 19 15 5 5 5 4 Class Distribution -------------------- 40% | Mutant 17% | Derelict-Mutant 10% | Gunner 10% | Scavenger-Mutant 6% | Tank 3% | Derelict-Scrapper 3% | Skirmisher Dominant Class ---------------- Mutant | -10/Materials Mutant | -10/Subcaves Mutant | -8/Recycling Derelict-Mutant | -8/Scraptown Tank | -6/Factory Mutant | -6/Lower Caves Mutant | -6/Lower Caves Gunner | -6/Data Miner Gunner | -5/Proximity Caves Mutant | -5/Factory Scavenger-Mutant | -5/Extension Scavenger-Mutant | -4/Factory Scavenger-Mutant | -4/Upper Caves Scavenger-Gunner | -4/Upper Caves Scavenger-Mutant | -4/Warlord Resources | -11 -10 -10 -8 -8 -6 -6 -6 -6 -5 -5 -5 -4 -4 -4 -4 ----------- Run | Yrd Mat Sub Rec Scr Fac Low Low Dat Pro Fac Ext Fac Upp Upp War Matter Collected 6731 | 260 560 417 110 148 1212 638 442 . 271 50 1348 696 304 41 234 Remotely 822 | . . . . . . . . . . . 734 88 . . . Salvage Created 7256 | 326 487 84 . . 1873 432 550 . 156 559 1725 1005 . . 59 Parts 329 | 31 32 4 . . 88 12 8 . 4 18 68 59 . . 5 Haulers Intercepted 1 | . . . . . . . . . . . 1 . . . . Recyclers Shooed 3 | . 1 . . . . . . . . . 2 . . . . Parts Field Recycled . | . . . . . . . . . . . . . . . . Retrieved Matter . | . . . . . . . . . . . . . . . . Parts Self-Destructed 51 | . . 11 . . . 10 3 . 25 . . . . 2 . Prevented 50 | . . . . . . . 8 . 17 . . . 9 16 . Kills | -11 -10 -10 -8 -8 -6 -6 -6 -6 -5 -5 -5 -4 -4 -4 -4 ------- Run | Yrd Mat Sub Rec Scr Fac Low Low Dat Pro Fac Ext Fac Upp Upp War Combat Hostiles Destroyed 121 | . 11 2 . . 32 11 5 . 2 9 28 20 . . 1 Melee 14 | . . . . . 7 . . . . . 4 2 . . 1 Guns 36 | . . . . . 16 6 3 . 2 . 4 5 . . . Cannons 44 | . 7 2 . . 5 . 2 . . 8 14 6 . . . AOE 22 | . 4 . . . 1 5 . . . . 6 6 . . . Classes Destroyed 18 | 3 5 1 . . 4 . 2 . . . 2 1 . . . Worker 9 | 2 4 . . . . . . . . . . 3 . . . Builder 5 | . 1 . . . 2 . . . . . 1 1 . . . Tunneler 9 | 8 1 . . . . . . . . . . . . . . Hauler 1 | . . . . . . . . . . . 1 . . . . Recycler 9 | 1 2 . . . 1 . . . . . 4 1 . . . Mechanic 1 | . . . . . . . 1 . . . . . . . . Operator 3 | . 1 . . . . . . . . . 1 1 . . . Watcher 3 | . 2 . . . . . . . . . 1 . . . . Swarmer 36 | . 3 . . . 4 11 . . 1 . 9 8 . . . Grunt 46 | . 8 . . . 14 . 3 . 1 6 8 6 . . . Brawler 5 | . . . . . 3 . 1 . . . . 1 . . . Duelist 2 | . . . . . . . . . . . . 2 . . . Sentry 13 | . . . . . 3 . 1 . 1 2 6 . . . . Hunter 8 | . . . . . 4 . . . . 1 1 2 . . . Programmer 11 | . . . . . 6 . . . . . 3 1 . . 1 Behemoth 1 | . . . . . . . . . . . 1 . . . . Subdweller 3 | . . 2 . . 1 . . . . . . . . . . Packrat 2 | . . . . . . . 2 . . . . . . . . Samaritan 2 | . . . . . . . 2 . . . . . . . . Savage 1 | . . . . . . . 1 . . . . . . . . Best Kill Streak 14 | 6 4 2 . . 4 4 2 . 1 3 14 6 . . 1 Combat Bots Only 10 | . 3 2 . . 4 4 2 . 1 3 10 6 . . 1 Max Kills in Single Turn 3 | 2 2 1 . . 2 2 1 . 1 1 2 3 . . 1 Gunslinging 1 | . . . . . . 1 . . . . . . . . . Exploded 3 | . 2 . . . 1 2 . . . . 2 3 . . . Melee 1 | . . . . . 1 . . . . . 1 1 . . 1 Uniques/NPCs Destroyed . | . . . . . . . . . . . . . . . . Combat | -11 -10 -10 -8 -8 -6 -6 -6 -6 -5 -5 -5 -4 -4 -4 -4 -------- Run | Yrd Mat Sub Rec Scr Fac Low Low Dat Pro Fac Ext Fac Upp Upp War Hostile Shots Fired 1441 | . 48 14 . . 225 41 41 . . 71 373 493 . . 135 Missed 436 | . 16 5 . . 47 9 13 . . 25 112 169 . . 40 Damage Taken 19008 | . 402 419 . . 2989 460 591 . 12 915 5135 6036 . . 2049 Core 2578 | . 35 38 . . 294 49 25 . . 71 875 770 . . 421 Absorbed by Shields 291 | . . . . . . . . . . . 67 . . . 224 Redirected to Shielding 239 | . . . . . . 36 . . . 12 106 . . . 85 Ignored by Resistances 211 | . . . . . . . . . . . . 211 . . . Regen/Repaired (Parts) 308 | . . . . . 143 . 20 . 81 . . . . . 64 Core Remaining (%) 57 | 100 . . . 70 . . . . 56 . 5 . . . . Volleys Fired 490 | 20 87 26 1 . 94 16 24 . 12 42 106 54 . . 8 Largest 3 | 2 2 2 1 . 3 3 3 . 3 1 2 3 . . 1 Hottest 260 | 80 100 136 50 . 155 155 155 . 170 40 260 225 . . 90 Shots Fired 725 | 40 110 31 1 . 173 27 53 . 24 42 129 85 . 2 8 Gun 327 | 40 . . 1 . 155 19 29 . 24 . 22 31 . 2 4 Cannon 349 | . 82 30 . . 18 1 24 . . 42 100 48 . . 4 Launcher 30 | . 10 1 . . . 7 . . . . 6 6 . . . Special 19 | . 18 . . . . . . . . . 1 . . . . Kinetic 413 | . 63 1 . . 112 12 43 . 18 . 114 50 . . . Thermal 242 | . 37 30 . . 61 8 10 . 6 42 14 29 . 1 4 Explosive 17 | . 10 . . . . 7 . . . . . . . . . Electromagnetic 48 | 40 . . 1 . . . . . . . . 6 . 1 . Entropic 4 | . . . . . . . . . . . . . . . 4 Robot Hit Streak 17 | 6 17 11 13 . 16 5 10 . 3 15 7 11 . . 2 Robot Miss Streak 7 | 3 2 . . . 4 4 4 . 2 2 6 4 . 3 7 Penetration Max 2 | . . . . . 1 1 . . . . 2 1 . . . Secondary Targets 4 | . . . . . 1 2 . . . . 1 . . . . Max Gunslinging Chain 1 | . . . . . 1 1 . . . . 1 . . . . Shots Hit Robots 493 | 22 55 10 1 . 137 13 38 . 8 33 92 75 . . 9 Core Hits 251 | 12 25 4 . . 68 13 14 . 3 12 56 43 . . 1 Critical Kills 16 | . . . . . 1 1 1 . 1 1 10 1 . . . Critical Parts Destroyed 23 | . . . . . 2 1 . . . . 19 1 . . . Critical Strikes 72 | . 5 . . . 16 2 5 . 2 1 34 7 . . . Burn 17 | . . . . . 12 . 2 . 1 . 2 . . . . Meltdown 1 | . . . . . . . . . . 1 . . . . . Destroy 36 | . . . . . 3 . 1 . 1 . 29 2 . . . Blast 13 | . 5 . . . . . 2 . . . 1 5 . . . Smash 2 | . . . . . . 2 . . . . . . . . . Sever 1 | . . . . . 1 . . . . . . . . . . Melee Attacks 184 | . . 15 . . 60 4 5 . . 12 28 48 . . 12 Impact 22 | . . . . . . 4 5 . . 12 1 . . . . Slashing 141 | . . 15 . . 40 . . . . . 27 48 . . 11 Piercing 21 | . . . . . 20 . . . . . . . . . 1 Sneak Attacks 21 | . . . . . 8 . 5 . . . 4 4 . . . Combat Hostiles 8 | . . . . . 8 . . . . . . . . . . Follow-up Attacks 5 | . . . . . 2 . . . . . 1 2 . . . Damage Inflicted 18997 | 310 1411 206 23 . 4232 1062 1520 . 257 1658 4229 3716 . 2 371 Guns 5348 | 310 . . 23 . 2633 265 562 . 257 . 609 494 . 2 193 Cannons 7127 | . 964 206 . . 465 . 423 . . 1658 1988 1423 . . . Explosions 2610 | . 423 . . . 141 493 . . . . 644 909 . . . Melee 3854 | . . . . . 986 304 535 . . . 988 863 . . 178 Ramming 34 | . . . . . 7 . . . . . . 27 . . . Kinetic 7531 | . 737 . . . 1805 153 760 . 229 . 2424 1423 . . . Thermal 5649 | . 251 206 . . 1434 112 225 . 28 1658 817 918 . . . Explosive 916 | . 423 . . . . 493 . . . . . . . . . Electromagnetic 820 | 310 . . 23 . . . . . . . . 485 . 2 . Impact 863 | . . . . . . 304 535 . . . 24 . . . . Slashing 2957 | . . . . . 952 . . . . . 964 863 . . 178 Piercing 34 | . . . . . 34 . . . . . . . . . . Entropic 193 | . . . . . . . . . . . . . . . 193 Highest Corruption 65 | . . . 1 1 6 2 . . . 2 5 50 65 65 65 Average Corruption 7 | . . . 1 1 2 1 . . . 1 3 15 50 65 40 Corruption Purged 19 | . . . . . 7 2 . . . . 9 . . . 1 Corruption Blocked . | . . . . . . . . . . . . . . . . Effects 188 | . . . 1 46 29 3 . . . . 22 33 22 28 4 Message Errors 57 | . . . 1 14 12 1 . . . . 6 7 7 6 3 Matter Fused 38 | . . . . 9 4 1 . . . . 6 8 6 4 . Heat Flow Errors 20 | . . . . 8 4 . . . . . 1 6 1 . . Energy Discharges 29 | . . . . 7 3 . . . . . 5 2 2 9 1 Parts Rejected 3 | . . . . . . . . . . . . 3 . . . Parts Fused 3 | . . . . 2 . . . . . . 1 . . . . Data Loss (minor) 19 | . . . . 5 5 . . . . . 2 . 2 5 . Data Loss (major) 5 | . . . . 1 . . . . . . . 1 1 2 . Misfires 4 | . . . . . . . . . . . . 2 . 2 . Alerts 3 | . . . . . 1 1 . . . . 1 . . . . Misdirections 6 | . . . . . . . . . . . . 3 3 . . Weapon Failures 1 | . . . . . . . . . . . . 1 . . . Overload Shots 4 | . . . . . . . . . . . . 4 . . . Overflow Damage 1331 | . 15 . . . 151 211 417 . . 40 188 309 . . . Projectiles 168 | . 7 . . . . . . . . 40 69 52 . . . Explosions 126 | . 8 . . . . . . . . . . 118 . . . Melee 1037 | . . . . . 151 211 417 . . . 119 139 . . . Knockbacks 43 | . 16 . . . 4 . . . . . 12 11 . . . Impact . | . . . . . . . . . . . . . . . . Kinetic 41 | . 15 . . . 4 . . . . . 11 11 . . . Secondary 2 | . 1 . . . . . . . . . 1 . . . . Self-Inflicted Damage 239 | . 27 . . . 174 . . . . . . 38 . . . Shots 6 | . 1 . . . 3 . . . . . . 2 . . . Rammed 1 | . . . . . 1 . . . . . . . . . . Targets Rammed 5 | . . . . . 2 . . . . . . 3 . . . Kicked 4 | . . . . . 1 . . . . . . 3 . . . Crushed . | . . . . . . . . . . . . . . . . Highest Temperature 363 | 144 164 45 20 253 363 282 260 . 336 112 270 236 171 8 206 Average Temperature 88 | 57 49 21 12 101 127 104 118 . 107 40 103 76 89 3 113 Received Heat Transfer 3022 | . 180 12 . . 588 . 144 . . 315 722 866 . . 195 Effects 9 | . . . . . 5 2 2 . . . . . . . . Energy Bleed 2 | . . . . . 2 . . . . . . . . . . Interference 7 | . . . . . 3 2 2 . . . . . . . . Siege Activations . | . . . . . . . . . . . . . . . . Robots Corrupted 6 | . . . . . . 3 2 . . . . 1 . . . Combat Hostiles 4 | . . . . . . 3 . . . . . 1 . . . Parts Fried 10 | 3 . . . . . . 4 . . . . 3 . . . Impact Corruptions 26 | . . . . . . 10 16 . . . . . . . . Robots Melted 4 | . . . . . 3 . . . . 1 . . . . . Combat Hostiles 4 | . . . . . 3 . . . . 1 . . . . . Parts Melted 10 | . . . . . 7 . . . 1 1 1 . . . . Heat Transferred 7963 | . 457 370 . . 3500 200 600 . 150 . 1620 1066 . . . Parts Sabotaged . | . . . . . . . . . . . . . . . . Parts Stolen . | . . . . . . . . . . . . . . . . Parts Stripped . | . . . . . . . . . . . . . . . . Power Chain Reactions . | . . . . . . . . . . . . . . . . Alert | -11 -10 -10 -8 -8 -6 -6 -6 -6 -5 -5 -5 -4 -4 -4 -4 ------- Run | Yrd Mat Sub Rec Scr Fac Low Low Dat Pro Fac Ext Fac Upp Upp War Peak Influence 788 | 55 341 . 168 . 506 . . . . 429 450 788 . . . Initial 175 | . 35 . 30 . . . . . . 175 150 109 . . . Average 213 | 21 150 . 124 . 201 . . . . 278 218 385 . . . Maximum Alert Level 3 | . 1 . . . 2 . . . . 2 2 3 . . . Low Security (%) 53 | 100 76 . 100 . 53 . . . . 16 47 20 . . . Level 1 36 | . 23 . . . 33 . . . . 79 52 29 . . . Level 2 9 | . . . . . 12 . . . . 4 . 47 . . . Level 3 . | . . . . . . . . . . . . 3 . . . Level 4 . | . . . . . . . . . . . . . . . . Level 5 . | . . . . . . . . . . . . . . . . High Security . | . . . . . . . . . . . . . . . . Max Security . | . . . . . . . . . . . . . . . . Squads Dispatched 34 | . 2 . . . 10 . 1 . . 3 6 12 . . . Investigation 11 | . . . . . 1 . . . . 3 3 4 . . . Extermination 9 | . . . . . 7 . . . . . . 2 . . . Reinforcement 10 | . 2 . . . 2 . . . . . 3 3 . . . Assault 3 | . . . . . . . 1 . . . . 2 . . . Garrison 1 | . . . . . . . . . . . . 1 . . . Intercept . | . . . . . . . . . . . . . . . . Searches Triggered . | . . . . . . . . . . . . . . . . Data Miner Redirects 2 | . . . . . . . . . . . 1 1 . . . Construction Impeded 1 | . . . . . . . . . . . 1 . . . . Haulers Reinforced 1 | . . . . . 1 . . . . . . . . . . Active Scanning Responses . | . . . . . . . . . . . . . . . . Cargo Convoy Interrupts . | . . . . . . . . . . . . . . . . Stealth | -11 -10 -10 -8 -8 -6 -6 -6 -6 -5 -5 -5 -4 -4 -4 -4 --------- Run | Yrd Mat Sub Rec Scr Fac Low Low Dat Pro Fac Ext Fac Upp Upp War Distress Signals 8 | . 2 . . . . . . . . . 3 3 . . . Communications Jammed 81 | . . . . . 1 . . . . . 60 . . . 20 Distress Signals 81 | . . . . . 1 . . . . . 60 . . . 20 Times Spotted 302 | . 22 18 2 . 56 11 15 . 18 11 48 69 5 1 26 Peak Tracking Total 18 | . 4 5 2 . 4 4 7 . 6 4 10 13 4 3 18 Tactical Retreats 29 | . 3 1 . . 2 1 2 . . 1 5 12 . . 2 Traps | -11 -10 -10 -8 -8 -6 -6 -6 -6 -5 -5 -5 -4 -4 -4 -4 ------- Run | Yrd Mat Sub Rec Scr Fac Low Low Dat Pro Fac Ext Fac Upp Upp War Traps Triggered 13 | . . . . . 3 . . . . . 8 1 . . 1 Indirectly 1 | . . . . . . . . . . . . 1 . . . Trap Hack Attempts . | . . . . . . . . . . . . . . . . Triggered . | . . . . . . . . . . . . . . . . Disarmed . | . . . . . . . . . . . . . . . . Reprogrammed . | . . . . . . . . . . . . . . . . Reused 1 | . . . . . . . 1 . . . . . . . . Traps Extracted . | . . . . . . . . . . . . . . . . Installed 1 | . . . . . . . 1 . . . . . . . . Triggered 26 | . . 3 . . . 1 1 . 1 . . 1 . . 19 Most Traps Carried 1 | . . . . 1 1 1 1 . . . . . . . . Time Bombs Activated 2 | . . . . . . . . . . . 2 . . . . Exploded 2 | . . . . . . . . . . . 2 . . . . Machines | -11 -10 -10 -8 -8 -6 -6 -6 -6 -5 -5 -5 -4 -4 -4 -4 ---------- Run | Yrd Mat Sub Rec Scr Fac Low Low Dat Pro Fac Ext Fac Upp Upp War Machines Disabled 34 | . . 1 . . 8 . . . 3 1 1 20 . . . Max in Single Turn 5 | . . 1 . . 3 . . . 1 1 1 5 . . . Machines Repaired . | . . . . . . . . . . . . . . . . Machines Dismantled . | . . . . . . . . . . . . . . . . Machines Sabotaged . | . . . . . . . . . . . . . . . . Overloaded Fab Kills . | . . . . . . . . . . . . . . . . Hacking | -11 -10 -10 -8 -8 -6 -6 -6 -6 -5 -5 -5 -4 -4 -4 -4 --------- Run | Yrd Mat Sub Rec Scr Fac Low Low Dat Pro Fac Ext Fac Upp Upp War Machines Accessed 46 | . 9 3 5 2 4 . 1 4 . 6 6 3 . 1 2 Terminals 22 | . 7 . 3 . 2 . . . . 2 5 2 . 1 . Fabricators 3 | . . . . . 1 . . . . 2 . . . . . Repair Stations 1 | . . . . . 1 . . . . . . . . . . Recycling Units 7 | . 2 . 2 . . . . . . 1 1 1 . . . Scanalyzers 1 | . . . . . . . . . . 1 . . . . . Garrison Access . | . . . . . . . . . . . . . . . . Total Hacks 150 | . 24 15 18 3 8 . 1 30 . 21 14 10 . 1 5 Successful 97 | . 10 15 11 3 4 . 1 30 . 13 3 1 . 1 5 Failed 52 | . 13 . 7 . 4 . . . . 8 11 9 . . . Catastrophic 11 | . 6 . . . 2 . . . . 1 2 . . . . Database Lockouts 1 | . 1 . . . . . . . . . . . . . . Manual 41 | . 17 . 9 . 1 . . . . 4 6 3 . . 1 Terminals 65 | . 22 . 13 . 2 . . . . 9 11 7 . 1 . Fabricators 10 | . . . . . 3 . . . . 7 . . . . . Repair Stations 3 | . . . . . 3 . . . . . . . . . . Recycling Units 15 | . 2 . 5 . . . . . . 2 3 3 . . . Scanalyzers 3 | . . . . . . . . . . 3 . . . . . Garrison Access . | . . . . . . . . . . . . . . . . Terminal Hacks 72 | . 5 15 5 3 1 . 1 30 . 4 1 1 . 1 5 Record 32 | . . 13 . 1 . . . 11 . 2 . . . 1 4 Part Schematic 14 | . . . 3 . . . . 11 . . . . . . . Robot Schematic 6 | . . . 1 . . . . 5 . . . . . . . Robot Analysis 2 | . 2 . . . . . . . . . . . . . . Prototype ID Bank 4 | . . . 1 . . . . 3 . . . . . . . Open Door 5 | . . 1 . 1 . . 1 . . 1 . . . . 1 Branch Access Points 1 | . . . . . 1 . . . . . . . . . . Locate Traps 1 | . 1 . . . . . . . . . . . . . . Security Status 1 | . . . . . . . . . . 1 . . . . . Hauler Manifests 1 | . 1 . . . . . . . . . . . . . . Zone Layout 3 | . 1 . . . . . . . . . 1 1 . . . Derelict Proto ID Bank 2 | . . 1 . 1 . . . . . . . . . . . Fabricator Hacks 5 | . . . . . 1 . . . . 4 . . . . . Network Status 1 | . . . . . . . . . . 1 . . . . . Load Schematic 3 | . . . . . 1 . . . . 2 . . . . . Build 1 | . . . . . . . . . . 1 . . . . . Repair Station Hacks 2 | . . . . . 2 . . . . . . . . . . Scan Component 1 | . . . . . 1 . . . . . . . . . . Repair 1 | . . . . . 1 . . . . . . . . . . Recycling Unit Hacks 8 | . 2 . 2 . . . . . . 2 2 . . . . Report Inventory 7 | . 2 . 2 . . . . . . 1 2 . . . . Retrieve Components 1 | . . . . . . . . . . 1 . . . . . Scanalyzer 2 | . . . . . . . . . . 2 . . . . . Insert Component 1 | . . . . . . . . . . 1 . . . . . Analyze 1 | . . . . . . . . . . 1 . . . . . Garrison Access Hacks . | . . . . . . . . . . . . . . . . Unauthorized Hacks 8 | . 3 . 4 . . . . . . 1 . . . . . Terminals 6 | . 3 . 2 . . . . . . 1 . . . . . Botnet 6 | . 3 . 2 . . . . . . 1 . . . . . Fabricators . | . . . . . . . . . . . . . . . . Repair Stations . | . . . . . . . . . . . . . . . . Recycling Units 2 | . . . 2 . . . . . . . . . . . . Tunnel 2 | . . . 2 . . . . . . . . . . . . Scanalyzers . | . . . . . . . . . . . . . . . . Garrison Access . | . . . . . . . . . . . . . . . . Data Cores Recovered . | . . . . . . . . . . . . . . . . Used . | . . . . . . . . . . . . . . . . Hacking Detections 27 | . 7 . 3 . 2 . . . . 5 6 4 . . . Full Trace Events 12 | . 1 . 2 . 1 . . . . 3 3 2 . . . Feedback Events 2 | . . . 1 . . . . . . . . 1 . . . Corruption 2 | . . . 1 . . . . . . . . 1 . . . Feedback Blocked . | . . . . . . . . . . . . . . . . Robot Schematics Acquired 6 | . . . 1 . . . . 5 . . . . . . . Robots Built . | . . . . . . . . . . . . . . . . Authchips . | . . . . . . . . . . . . . . . . Time . | . . . . . . . . . . . . . . . . Total Robot Build Rating . | . . . . . . . . . . . . . . . . Part Schematics Acquired 15 | . . . 3 . . . . 11 . 1 . . . . . Parts Built 2 | . . . . . . . . . . 2 . . . . . Authchips . | . . . . . . . . . . . . . . . . Time 73 | . . . . . . . . . . 73 . . . . . Total Part Build Rating 6 | . . . . . . . . . . 6 . . . . . Parts Repaired 1 | . . . . . 1 . . . . . . . . . . Time 44 | . . . . . 44 . . . . . . . . . . Parts Recycled . | . . . . . . . . . . . . . . . . Recycled Matter . | . . . . . . . . . . . . . . . . Retrieved Matter . | . . . . . . . . . . . . . . . . Retrieved Components 7 | . . . . . . . . . . 7 . . . . . Parts Scanalyzed 1 | . . . . . . . . . . 1 . . . . . Part Schematics Acquired 1 | . . . . . . . . . . 1 . . . . . Parts Damaged . | . . . . . . . . . . . . . . . . Bothacking | -11 -10 -10 -8 -8 -6 -6 -6 -6 -5 -5 -5 -4 -4 -4 -4 ------------ Run | Yrd Mat Sub Rec Scr Fac Low Low Dat Pro Fac Ext Fac Upp Upp War Used RIF Installer . | . . . . . . . . . . . . . . . . Robots Hacked 1 | . . . . . . . . . . . 1 . . . . Non-combat . | . . . . . . . . . . . . . . . . Combat 1 | . . . . . . . . . . . 1 . . . . Robot Hacks Applied 1 | . . . . . . . . . . . 1 . . . . parse_system 1 | . . . . . . . . . . . 1 . . . . Relay Couplers Released . | . . . . . . . . . . . . . . . . Fabnet Peak Effective % . | . . . . . . . . . . . . . . . . Robots Rewired 9 | . . . . . . . 2 . . . 7 . . . . Allies Hacked . | . . . . . . . . . . . . . . . . Hacks Repelled . | . . . . . . . . . . . . . . . . Allies | -11 -10 -10 -8 -8 -6 -6 -6 -6 -5 -5 -5 -4 -4 -4 -4 -------- Run | Yrd Mat Sub Rec Scr Fac Low Low Dat Pro Fac Ext Fac Upp Upp War Total Allies 63 | . . 10 . . 6 . 8 . 6 . 14 10 5 4 . Largest Group 7 | . . 4 4 4 4 . 4 4 6 . 7 4 5 4 4 Highest-Rated Group 382 | . . 76 76 76 76 . 324 220 382 . 210 309 365 320 320 Highest-Rated Ally 159 | . . 19 19 19 47 . 81 81 81 . 159 159 81 81 81 Total Orders 4 | . . . . . . 2 2 . . . . . . . . STAY 1 | . . . . . . . 1 . . . . . . . . FOLLOW 1 | . . . . . . . 1 . . . . . . . . EXPLORE 2 | . . . . . . 2 . . . . . . . . . Ally Attacks 313 | . . 40 11 . 32 . 4 . 44 . 78 50 28 26 . Total Damage 10357 | . . 1063 212 . 497 . 153 . 1909 . 1776 2747 1334 666 . Kills 78 | . . 10 2 . 3 . 1 . 20 . 8 20 7 7 . Allies Corrupted . | . . . . . . . . . . . . . . . . Allies Melted 2 | . . . . . . . . . . . 1 . . . 1 Intel | -11 -10 -10 -8 -8 -6 -6 -6 -6 -5 -5 -5 -4 -4 -4 -4 ------- Run | Yrd Mat Sub Rec Scr Fac Low Low Dat Pro Fac Ext Fac Upp Upp War Robot Analysis Total 2 | . 2 . . . . . . . . . . . . . . Derelict Logs Recovered 13 | . . 2 . 3 . 1 1 . 2 . . . 1 3 . Drone Launches 2 | . . . . . . 2 . . . . . . . . . Drone Recoveries . | . . . . . . . . . . . . . . . . Exploration | -11 -10 -10 -8 -8 -6 -6 -6 -6 -5 -5 -5 -4 -4 -4 -4 ------------- Run | Yrd Mat Sub Rec Scr Fac Low Low Dat Pro Fac Ext Fac Upp Upp War Turns Passed 31699 | 246 1858 3797 437 5303 3649 3340 3181 211 3056 711 2582 1099 363 557 1309 Spaces Moved 15341 | 113 862 1590 267 2496 1629 1488 1415 99 1429 254 1396 560 282 462 999 Core 200 | 6 . . . . . . . . . . 194 . . . . Treads 5916 | 107 862 1590 267 2496 560 . . . . . 14 20 . . . Legs 8860 | . . . . . 974 1488 1415 99 1429 254 1182 322 282 462 953 Wheels 319 | . . . . . 95 . . . . . 6 218 . . . Hover . | . . . . . . . . . . . . . . . . Flight 46 | . . . . . . . . . . . . . . . 46 Fastest Speed 50 | 50 160 160 160 160 102 209 209 209 209 205 50 110 114 115 52 Average Speed 178 | 154 160 160 160 210 187 209 209 209 209 205 145 131 114 115 116 Slowest Speed 1800 | 160 160 160 160 330 360 209 209 209 209 205 1800 190 115 115 170 Overloaded Moves . | . . . . . . . . . . . . . . . . Propulsion Burnouts . | . . . . . . . . . . . . . . . . Robots Hopped . | . . . . . . . . . . . . . . . . Cave-ins Triggered . | . . . . . . . . . . . . . . . . Exploration Rate (%) 64 | 5 98 78 49 93 40 93 67 74 98 8 96 25 47 71 88 Regions Visited 15 Branch Regions 11 Pre-discovered Areas 7 | . . 3 2 . . 1 . 1 . . . . . . . Known Exits Taken 10 | . . . . . 1 1 1 1 1 1 1 1 1 1 . Unknown Exits Taken 5 | 1 1 1 1 1 . . . . . . . . . . . Scrap Searched 25 | . . 4 . 8 . 5 3 . 2 . . . 1 2 . Spaces Dug 125 | . 2 15 . . 66 1 4 . 9 11 . 17 . . . Terrain Destroyed 475 | . 68 30 . . 126 61 14 . 15 17 45 95 . . 4 Melee 59 | . . 15 . . 18 . . . . 10 . 16 . . . Projectile 169 | . 2 . . . 59 12 14 . 15 7 40 16 . . 4 AOE 247 | . 66 15 . . 49 49 . . . . 5 63 . . . Terrain Rammed . | . . . . . . . . . . . . . . . . Walls Destroyed . | . . . . . . . . . . . . . . . . Machines Disabled . | . . . . . . . . . . . . . . . . Actions | -11 -10 -10 -8 -8 -6 -6 -6 -6 -5 -5 -5 -4 -4 -4 -4 --------- Run | Yrd Mat Sub Rec Scr Fac Low Low Dat Pro Fac Ext Fac Upp Upp War Total 18768 | 142 1189 2788 277 2549 2068 1690 1591 103 1486 389 1796 767 325 489 1119 Wait 1956 | 2 208 1082 3 6 171 146 98 3 11 72 42 27 22 17 46 Move 15327 | 112 861 1589 266 2495 1628 1487 1414 98 1428 253 1395 560 281 461 999 Hop . | . . . . . . . . . . . . . . . . Pick Up 167 | 2 13 19 1 20 30 7 9 . 7 3 26 18 4 3 5 Fast Attach 78 | 6 . . . 2 8 2 . . 3 . 28 18 4 . 7 Attach 76 | . 1 3 . . 14 2 3 . 4 3 21 19 3 . 3 Detach 20 | . . . 1 . 1 . . . 3 . 8 2 1 . 4 Swap 204 | . 16 31 2 10 44 18 16 2 10 3 16 13 4 2 17 Drop 152 | . 3 23 3 16 19 8 10 . 8 1 23 9 6 5 18 Fire 490 | 20 87 26 1 . 94 16 24 . 12 42 106 54 . . 8 Melee 176 | . . 15 . . 57 4 5 . . 12 27 44 . . 12 Ram 1 | . . . . . . . . . . . . 1 . . . Kick 3 | . . . . . 1 . . . . . . 2 . . . Crush 1 | . . . . . 1 . . . . . . . . . . Escape Stasis 30 | . . . . . . . . . . . 30 . . . . Rewire 83 | . . . . . . . 11 . . . 72 . . . . Trap 3 | . . . . . . . 1 . . . 2 . . . . Miscellaneous 1 | . . . . . . . . . . . . . . 1 . Route ------- -11/Scrapyard -10/Materials (discovered 5 exits: [*Mat x3] / [*Min] / *Sub) -10/Subcaves (discovered 3 exits: [*Mat x2] / *Rec) -8/Recycling -8/Scraptown (discovered 2 exits: *Fac x2) -6/Factory (discovered 3 exits: *Fac / *Low x2) -6/Lower Caves -6/Lower Caves -6/Data Miner -5/Proximity Caves -5/Factory (discovered 4 exits: Fac x2 / *Ext x2) -5/Extension (discovered 2 exits: *Fac / [*Cet]) -4/Factory (discovered 2 exits: *Upp / Arm) -4/Upper Caves -4/Upper Caves (discovered 2 exits: Res / *War) -4/Warlord History --------- Turn | Location | Event 8 | -11/Scrapyard | Discovered new exit (range 16) 247 | -11/Scrapyard | Entered Materials 321 | -10/Materials | Build established: Mutant 526 | -10/Materials | Discovered new exit (range 7) 897 | -10/Materials | Discovered new exit (range 16) 949 | -10/Materials | Central database locked down 1067 | -10/Materials | Discovered new exit (range 15) 1278 | -10/Materials | Discovered new exit (range 15) 1432 | -10/Materials | Discovered new exit (range 3) 2105 | -10/Materials | Entered Subcaves 2318 | -10/Subcaves | Visited triangular shrine 2330 | -10/Subcaves | Found Prototype Device 2359 | -10/Subcaves | Identified V3-11A's Pendant 2364 | -10/Subcaves | Befriended Subdweller 2452 | -10/Subcaves | Learned location of Zion (-7) 2452 | -10/Subcaves | Met a Zionite searching for "candidates" 2521 | -10/Subcaves | Disturbed a concealed Subdweller 2584 | -10/Subcaves | A swath of the cavern ceiling suddenly collapsed 2618 | -10/Subcaves | Shifting Twisted Machinery released Riot Gun 2626 | -10/Subcaves | Shifting Twisted Machinery released Mak. System Shield 2661 | -10/Subcaves | Discovered new exit (range 5) 2662 | -10/Subcaves | Shifting Twisted Machinery released Mak. System Restoration Module 2663 | -10/Subcaves | Shifting Twisted Machinery released Sub. Shrapnel Launcher 2802 | -10/Subcaves | Befriended Subdweller 2816 | -10/Subcaves | Discovered new exit (range 9) 3080 | -10/Subcaves | Befriended Subdweller 3100 | -10/Subcaves | Befriended Subdweller 3207 | -10/Subcaves | Ambushed by Subdwellers from Twisted Machinery 3213 | -10/Subcaves | Befriended Subdweller 3335 | -10/Subcaves | Learned Materials stockpile data 3369 | -10/Subcaves | Shifting Twisted Machinery released Sub. Laser 3377 | -10/Subcaves | Shifting Twisted Machinery released Sub. Laser 3540 | -10/Subcaves | Befriended Subdweller 3770 | -10/Subcaves | Visited Clippyterm 3775 | -10/Subcaves | Learned location of Extension (-5) 3775 | -10/Subcaves | Learned Research security intel 3809 | -10/Subcaves | A swath of the cavern ceiling suddenly collapsed 3815 | -10/Subcaves | Befriended Subdweller 3878 | -10/Subcaves | Befriended Subdweller 3883 | -10/Subcaves | Befriended Subdweller 4101 | -10/Subcaves | Visited 4L-MR0's lab 4127 | -10/Subcaves | Found Powered Cannon 4210 | -10/Subcaves | Befriended Subdweller 5719 | -10/Subcaves | Discovered new exit (range 5) 5902 | -10/Subcaves | Entered Recycling 5902 | -8/Recycling | Accompanied by 4 allies 6166 | -8/Recycling | Scanned before Scraplab entrance 6316 | -8/Recycling | Entered Scraplab 6331 | -8/Recycling | Discovered new exit (range 3) 6339 | -8/Recycling | Entered Scraptown 6339 | -8/Scraptown | Accompanied by 4 allies 6472 | -8/Scraptown | Delivered V3-11A's Pendant to T0-NE2 in exchange for information 6696 | -8/Scraptown | Scanned Subdweller tech in exchange for log data 6701 | -8/Scraptown | Learned Research terminal intel 6702 | -8/Scraptown | Learned Research non-interactive machine intel 6728 | -8/Scraptown | Discovered new exit (range 5) 7100 | -8/Scraptown | Build established: Derelict-Mutant 7115 | -8/Scraptown | Visited Shadow of the Wyrm 7144 | -8/Scraptown | Visited SPCMW 7173 | -8/Scraptown | Visited Fellowship of the Rings 7192 | -8/Scraptown | Visited Red Mages 7322 | -8/Scraptown | Visited Science Testing Area 7342 | -8/Scraptown | Visited TADAMA 7380 | -8/Scraptown | Visited The Evicted 7406 | -8/Scraptown | Visited UFD Registry 7406 | -8/Scraptown | Registered with UFD as "Fiberlauncher" 7516 | -8/Scraptown | Guru changed UFD alias to "Shockforce" 7713 | -8/Scraptown | Visited Modified Component R&D 7800 | -8/Scraptown | Visited Curators Association 7865 | -8/Scraptown | Visited Junk Repository 7913 | -8/Scraptown | Visited Science Guys 7991 | -8/Scraptown | Visited Sword Containment 8023 | -8/Scraptown | Visited Derelict Rescue Squad 8034 | -8/Scraptown | Found DRS Beacon 8085 | -8/Scraptown | Visited Scrap Suit Storage 8198 | -8/Scraptown | Delivered Scrap Shield to a Scientist 8519 | -8/Scraptown | Visited LU-1G1's Boring Crew 8629 | -8/Scraptown | Visited Chapter 10 8679 | -8/Scraptown | Visited DA-N13 Charitable Foundation 8689 | -8/Scraptown | Found DCF Scrap (31 items) 9145 | -8/Scraptown | Found Scrap Suit 9414 | -8/Scraptown | Discovered new exit (range 5) 11521 | -8/Scraptown | Found Scrap Suit 11642 | -8/Scraptown | Entered Factory 11642 | -6/Factory | Accompanied by 4 allies 11642 | -6/Factory | Evolved 8 slots: Propulsion x2, Utility x5, Weapon x1 11940 | -6/Factory | Lost 4 allies 11947 | -6/Factory | Build established: Derelict-Scrapper 12040 | -6/Factory | Repaired Ripper 12372 | -6/Factory | Discovered new exit (range 6) 12463 | -6/Factory | Discovered new exit (range 6) 12547 | -6/Factory | Lost 3 parts (1n2u) 12829 | -6/Factory | Lost 4 parts (1p2n1u) 13324 | -6/Factory | Build established: Tank 14342 | -6/Factory | Identified exit to Lower Caves 14375 | -6/Factory | Build established: Hacker-Mutant 14768 | -6/Factory | Build established: Tank 15291 | -6/Factory | Entered Lower Caves 15293 | -6/Lower Caves | UFD Scientist delivered a prototype 15303 | -6/Lower Caves | Found Prototype Protection 16212 | -6/Lower Caves | Identified Enh. Scrap Shield 16521 | -6/Lower Caves | Build established: Skirmisher 17030 | -6/Lower Caves | Build established: Mutant 17230 | -6/Lower Caves | Discovered new exit (range 10) 17258 | -6/Lower Caves | Identified exit to Lower Caves 18631 | -6/Lower Caves | Entered another Lower Caves area 18717 | -6/Lower Caves | Prototype Device suddenly appears! 18728 | -6/Lower Caves | Found Prototype Device 18729 | -6/Lower Caves | Identified Amulet of Y3-NDR 18800 | -6/Lower Caves | Attracted the attention of an 0b10 outpost 18987 | -6/Lower Caves | Joined by bewildered Wizard 18987 | -6/Lower Caves | Joined by bewildered Wizard 18988 | -6/Lower Caves | Joined by bewildered Wizard 18989 | -6/Lower Caves | Joined by bewildered Wizard 19245 | -6/Lower Caves | Learned 4 Factory zone layouts 19388 | -6/Lower Caves | Discovered new exit (range 14) 19413 | -6/Lower Caves | Identified exit to Data Miner 21126 | -6/Lower Caves | Joined by bewildered Wizard 21127 | -6/Lower Caves | Joined by bewildered Wizard 21763 | -6/Lower Caves | Build established: Gunner 21812 | -6/Lower Caves | Entered Data Miner 21812 | -6/Data Miner | Accompanied by 4 allies 21812 | -6/Data Miner | Discovered new exit (range 6) 21852 | -6/Data Miner | Met Data Miner 21919 | -6/Data Miner | Learned location of Section 7 (-2) 21919 | -6/Data Miner | Acquired the access code to Warlord's prototype stash 21950 | -6/Data Miner | Received God Mode back door access code from Data Miner 22015 | -6/Data Miner | Identified exit to Proximity Caves 22023 | -6/Data Miner | Entered Proximity Caves 22023 | -5/Proximity Caves | Accompanied by 4 allies 22113 | -5/Proximity Caves | Joined by bewildered Wizard 22113 | -5/Proximity Caves | Joined by bewildered Wizard 22175 | -5/Proximity Caves | Joined by bewildered Wizard 22176 | -5/Proximity Caves | Joined by bewildered Wizard 22809 | -5/Proximity Caves | Encountered a Derelict sapper outpost 22816 | -5/Proximity Caves | Learned 12 Factory zone layouts 24000 | -5/Proximity Caves | Learned 12 Factory zone layouts 24159 | -5/Proximity Caves | Discovered new exit (range 11) 24178 | -5/Proximity Caves | Identified exit to Factory 24536 | -5/Proximity Caves | Attracted the attention of an 0b10 base 24571 | -5/Proximity Caves | Lost 3 allies 24614 | -5/Proximity Caves | Joined by bewildered Wizard 24615 | -5/Proximity Caves | Joined by bewildered Wizard 24791 | -5/Proximity Caves | Attached Powered Cannon, gained temporary slot: Power 25067 | -5/Proximity Caves | Build established: Mutant 25079 | -5/Proximity Caves | Entered Factory 25079 | -5/Factory | Evolved 2 slots: Propulsion x1, Utility x1 25080 | -5/Factory | Identified exit to Factory 25080 | -5/Factory | Identified exit to Extension 25640 | -5/Factory | Fabricated Imp. Sensor Array (x2) 25790 | -5/Factory | Entered Extension 26083 | -5/Extension | Build established: Derelict-Mutant 26246 | -5/Extension | Destroyed 10 combat bots 26247 | -5/Extension | Lost 6 parts (4n2u) 26620 | -5/Extension | Build established: Scavenger-Mutant 27140 | -5/Extension | Disrupted transfer network 27205 | -5/Extension | Spotted B-75 Beast 27227 | -5/Extension | Destroyed B-75 Beast 27260 | -5/Extension | Lost 7 allies 27275 | -5/Extension | Core integrity fell below 50% 27288 | -5/Extension | Spotted B-75 Beast 27296 | -5/Extension | Released all parts (5) 27323 | -5/Extension | Lost 20 parts (1p8n5u6w) 27354 | -5/Extension | Core integrity fell below 20% 27513 | -5/Extension | Rescued a captive Derelict 27515 | -5/Extension | Rescued a captive Derelict 27537 | -5/Extension | Build established: Mutant 27547 | -5/Extension | Allies destroyed B-75 Beast 27886 | -5/Extension | Build established: Scavenger-Mutant 27965 | -5/Extension | Rescued a captive Derelict 27966 | -5/Extension | Rescued a captive Derelict 27981 | -5/Extension | Rescued a captive Derelict 28006 | -5/Extension | Rescued a captive Derelict 28123 | -5/Extension | Incoming investigation squad redirected 28162 | -5/Extension | Rescued A7 28219 | -5/Extension | Discovered exit to Factory (range 10) 28221 | -5/Extension | Discovered new exit (range 6) 28372 | -5/Extension | Entered Factory 28372 | -4/Factory | Accompanied by 3 allies (A7) 28372 | -4/Factory | Evolved 2 slots: Power x1, Propulsion x1 28373 | -4/Factory | Identified exit to Armory 28803 | -4/Factory | Joined by bewildered Wizard 28803 | -4/Factory | Joined by bewildered Wizard 28813 | -4/Factory | System corruption reached 10% 28851 | -4/Factory | Lost 18 parts (5p6n5u2w) 28864 | -4/Factory | Joined by bewildered Wizard 28864 | -4/Factory | Joined by bewildered Wizard 28882 | -4/Factory | Joined by bewildered Wizard 28882 | -4/Factory | Joined by bewildered Wizard 28942 | -4/Factory | Found Quantum Capacitor 29005 | -4/Factory | Joined by bewildered Wizard 29005 | -4/Factory | Joined by bewildered Wizard 29122 | -4/Factory | First assault squad dispatched 29198 | -4/Factory | Core integrity fell below 50% 29240 | -4/Factory | Found Prototype Launcher 29240 | -4/Factory | Identified Com. Tesla Bomb Launcher 29305 | -4/Factory | System corruption reached 30% 29346 | -4/Factory | Lost 8 parts (2p1n3u2w) 29429 | -4/Factory | Garrison activated, responded to threat 29431 | -4/Factory | Incoming assault squad redirected 29457 | -4/Factory | Discovered new exit (range 5) 29470 | -4/Factory | Identified exit to Upper Caves 29471 | -4/Factory | Entered Upper Caves 29496 | -4/Upper Caves | Lost 5 parts (1p2n1u1w) 29546 | -4/Upper Caves | Learned Research stockpile data 29594 | -4/Upper Caves | Joined by bewildered Wizard 29595 | -4/Upper Caves | Joined by bewildered Wizard 29602 | -4/Upper Caves | Joined by bewildered Wizard 29603 | -4/Upper Caves | Joined by bewildered Wizard 29775 | -4/Upper Caves | Discovered new exit (range 9) 29788 | -4/Upper Caves | Identified exit to Upper Caves 29834 | -4/Upper Caves | Entered another Upper Caves area 29834 | -4/Upper Caves | Accompanied by 4 allies 29835 | -4/Upper Caves | Encountered a Warlord checkpoint 29859 | -4/Upper Caves | Activated DRS Beacon 29892 | -4/Upper Caves | Joined by bewildered Wizard 29892 | -4/Upper Caves | Joined by bewildered Wizard 29902 | -4/Upper Caves | Joined by bewildered Wizard 29904 | -4/Upper Caves | Joined by bewildered Wizard 29905 | -4/Upper Caves | Lost 4 allies 30023 | -4/Upper Caves | Learned location of 1 exit from Proximity Caves 30064 | -4/Upper Caves | Identified exit to Research 30075 | -4/Upper Caves | Build established: Scavenger-Gunner 30335 | -4/Upper Caves | Discovered new exit (range 14) 30348 | -4/Upper Caves | Identified exit to Warlord 30363 | -4/Upper Caves | Learned location of 1 exit from Research 30391 | -4/Upper Caves | Entered Warlord 30391 | -4/Warlord | Accompanied by 4 allies 30432 | -4/Warlord | System corruption cleaned by Quarantine Array 30686 | -4/Warlord | Build established: Scavenger-Mutant 30720 | -4/Warlord | System corruption cleaned by Quarantine Array 31012 | -4/Warlord | Warlord's base attacked by MAIN.C 31362 | -4/Warlord | Warlord forces counterattacked 31370 | -4/Warlord | Rebuked by Warlord 31382 | -4/Warlord | Opened Warlord's prototype stash 31394 | -4/Warlord | Found Prototype Reactor 31394 | -4/Warlord | Identified Vortex Chain Reactor 31403 | -4/Warlord | Found Prototype Device 31403 | -4/Warlord | Identified System Purifier 31406 | -4/Warlord | Found Prototype Processor 31406 | -4/Warlord | Identified Exp. Core Analyzer 31466 | -4/Warlord | Lost 5 allies 31509 | -4/Warlord | Spotted Striker 31631 | -4/Warlord | Spotted Executioner 31639 | -4/Warlord | Spotted Striker 31641 | -4/Warlord | Core integrity fell below 20% 31663 | -4/Warlord | Found Prototype Energy Gun 31663 | -4/Warlord | Identified Vortex Rifle 31676 | -4/Warlord | Lost 4 allies 31687 | -4/Warlord | Warlord base infiltrated, sounded retreat 31700 | -4/Warlord | Destroyed by Striker with Plasma Lance Last Messages --------------- Take some prototypes if you'd like to experiment. 31663_ Acquired Prototype Energy Gun. 31663_ Identified Vortex Rifle. 31666_ Destroyed VTOL Module. 31669_ F2-QYW(c) knocked back. 31670_ Destroyed VTOL Module. 31672_ Neutron Cannon destroyed. 31673_ Machine disabled. 31674_ Dropped Vortex Rifle. 31676_ Striker sneak attacks. 31676_ F2-QYW(c) destroyed. 31676_ Machine disabled. 31687_ ANNOUNCEMENT: Base interior infiltrated, regroup at designated outer cave rendezvous points. 31688_ Slug penetrates G7-LFS(c). 31691_ P-70 Sage fails to hack 8C-G60(c). 31693_ Adv. Heat Sink destroyed. 31695_ Splicing Striker... 31695_ Striker system unaffected. 31696_ Exp. Myomer Leg destroyed. Map ----- +----------------------------------------------------+ | | | ????????????????????????????????????????????###### | | ????????????????????????????????????????????# | | ????????????????????????????????????????????# | | ????????????????????????????????????????????# | | ????????????????????????????????????????????# | | ????????????????????????????????????????????# | | ????????????????????????????????????????????# | | ????????????????????????????????????????????###+## | | ??????????????????????????????????????????????# | | #########?????????????????????????????????????# | | """ """ #???????????????????######????????????# | | """ """ #???????????????????# &#????????###### | | """ """ #???????????????????# &#????????# | | #???????????????????# #????????# | | #????????????????#### #????????# | | #???##############X##+############# | | ????# ## | | ? ??????# ####### ##? | | ###+##+#????# #?????# ##? | | # #????#++##############"####+######### #? | | # ## ####?# ############# [ # ## ### | | + ## #?# [["""""""## ! [ # [[ ## ## | | ## ## #?# """"## ! # ## | | ?# ## #?#" [""""# ! # === + | | ?# #######?#""% % [s""@# # ## | | ?# #???????#"" sK # ############### | | ?# #???????#"" "p # ##?????????????## | | ?# #???????#"" E""# #???????????????# | | ?# #???????#"" % X""""# #???????????????# | | ## #???????#""""""" """# % #???????????????# | | #???????#"""""""""""""## #????????????#### | | #???????############### #????????????# | | " #????###???# ##"###????????????# | | " ######"##### ] %! #############+## | | "= # !# != [ *[%=%[= !**==*%[![ ! | | " # !!= [ %*[% *[ ] **! !%![*!=[! ! | | = + ! !* ==%=!%= = %[ %%*!%=%%==*!= | | # !! / ==! =%=!*%!%%![! | | " " ## # [=![![["" # | | " # # ### # #### !%=%=![ # | | " # #???##### # [!%*= # | | " # #???????# # " [ #### | | ###########???????# # | | #?????????????????# # | | " #???############### % # = | | " ##??# X#* ==## + !% | | " #??# * =## # ######+## | | " #??# =## + # | | #??# =## ##### ### # !! | +----------------------------------------------------+ Best States ------------- Heat Dissipation 62 Coolant Potential 100 Energy Generation 55 Energy Capacity 700 Matter Stores 374 Matter Capacity 600 Sight Range 22 Robot Scan Range 15 Terrain Scan Range 16 Terrain Scan Density 10 Jamming Range 16 Additional Mass Support 9 Armor Coverage 1025 Resistance: KI 25 Resistance: TH 15 Propulsion Shielding 33 Utility Shielding 66 Phase Shifting 5 Evasion (%) 60 Target Analysis 8 Core Analysis 8 Recoil Reduction 4 Salvage Targeting 4 Offensive Hacking 14 Defensive Hacking 23 Item Schematics ----------------- Imp. Trap Scanner | -8/Recycling | Hacked Imp. Deuterium Engine | -8/Recycling | Hacked Stasis Canceller | -8/Recycling | Hacked Combat Drone Bay | -6/Data Miner | Free Lgt. Regenerative Plating | -6/Data Miner | Free Enh. Flexi-carbon Leg | -6/Data Miner | Free Prc. Matter Filter | -6/Data Miner | Free Tesla Bomb Launcher | -6/Data Miner | Free Myomer Leg | -6/Data Miner | Free Dispersion Rifle | -6/Data Miner | Free Lance | -6/Data Miner | Free Imp. Remote Shield | -6/Data Miner | Free Hvy. Gauss Cannon | -6/Data Miner | Free Adv. Focal Shield | -6/Data Miner | Free Imp. Sensor Array | -5/Factory | Scanalyzed Robot Schematics ------------------ M-28 Smith | -8/Recycling | Hacked S-27 Virus | -6/Data Miner | Free R-10 Processor | -6/Data Miner | Free G-50 Soldier | -6/Data Miner | Free M-22 Extractor | -6/Data Miner | Free L-61 Swordsman | -6/Data Miner | Free Fabricated ------------ Imp. Sensor Array | x2 | -5/Factory Alien Tech Used ----------------- None Achievements -------------- None Challenges ------------ None Game ------ Seed SystemMakeshiftMembrane Manual? 0 Play Time 04:00:27 Cumulative 126.9 hours Start 2024.08.25 @ 13:15:42 End 2024.08.25 @ 20:27:54 Sessions 3 Manual Loads 0 Difficulty Rogue Special Mode None Game No. 106 Rogue 106 Adventurer 0 Explorer 0 Win Type - Total 0 Types 0/0/0/0/0/0/0/0/0 Lore% 56 Gallery% 61 Achievement% 48 Wizard Run 0 Options --------- Layout 2 ASCII 0 Keyboard 1 Movement Vi Keybinds 0 Fullscreen 1 Font 32/SmallcapsGlow Map View 77x44 Zoom Use 0% Tactical HUD 1 Map Filters NONE Filters NONE Steam 1 RUN: a5cfe021-be50-4157-893f-070f4655c9f2